Cogmind - Beta 10.2 @@@ ROGUE MODE // 2022.02.05 @ 10:54:35 Player: Kaz Result: Destroyed by G-50 Soldier with Heavy Laser Performance ------------- Evolutions (2) 1000 Regions Visited (5) 1000 Robots Destroyed (100) 500 Value Destroyed (2426) 2426 Prototype IDs (4) 80 Alien Tech Used (0) 0 Bonus (317) 317 TOTAL SCORE: 5323 Bonus ------- High Alert Combat Kills 252 Follower Combat Kills 65 Cogmind --------- Core Integrity 0/550 Matter 234/300 Energy 160/160 System Corruption 0% Temperature Cool (306) Movement Rolling (130) Ox5 Location -8/Storage Parts ------- > --- POWER (2) -------- Light Nuclear Core > --- PROPULSION (2) --- Wheel > --- UTILITY (5) ------ Large Storage Unit Large Storage Unit Power Shielding Hardened Light Armor Plating Hardened Light Armor Plating > --- WEAPON (2) ------- Assault Cannon Heavy Mace > --- INVENTORY (16) --- Improved Ion Engine Light Nuclear Core Aluminum Leg Wheel Medium Matter Pod (100) Hardened Light Armor Plating Hardened Light Armor Plating Beam Rifle Heavy Assault Rifle Peak State ------------ > --- POWER ------------ Light Nuclear Core Light Nuclear Core > --- PROPULSION ------- Wheel Compact Wheel > --- UTILITY ---------- Large Storage Unit Large Storage Unit Power Shielding Hardened Light Armor Plating Hardened Light Armor Plating > --- WEAPON ----------- Assault Cannon Heavy Mace > --- INVENTORY -------- Improved Ion Engine Light Nuclear Core Light Nuclear Core Aluminum Leg Wheel Hardened Light Armor Plating Hardened Light Armor Plating Beam Rifle Heavy Assault Rifle Katana [Rating: 23] Favorites ----------- Power Light Nuclear Core Engine Improved Ion Engine Power Core Light Nuclear Core Propulsion Compact Wheel Wheel Compact Wheel Utility Large Storage Unit Device Experimental Sensor Array Storage Large Storage Unit Protection Light Armor Plating Weapon Improved Light Cannon Energy Gun EM Pulse Gun Ballistic Gun Autogun Ballistic Cannon Improved Light Cannon Impact Weapon Heavy Mace Slashing Weapon Katana Build | -11 -10 -10 -9 -8 -8 ------- Run | Scr Mat Min Mat Mat Sto Slots Evolved 4 | . . . 2 2 . Power 1 | . . . . 1 . Propulsion . | . . . . . . Utility 3 | . . . 2 1 . Weapon . | . . . . . . Parts Attached 86 | 6 7 7 20 43 3 Power 16 | 1 1 2 2 10 . Engine 8 | 1 1 1 1 4 . Core 8 | . . 1 1 6 . Reactor . | . . . . . . Propulsion 19 | 2 . 2 3 10 2 Treads . | . . . . . . Leg . | . . . . . . Wheel 19 | 2 . 2 3 10 2 Hover . | . . . . . . Flight . | . . . . . . Utility 25 | . 4 3 6 11 1 Device 3 | . . 1 1 1 . Storage 7 | . 2 1 . 4 . Processor . | . . . . . . Hackware . | . . . . . . Protection 15 | . 2 1 5 6 1 Artifact . | . . . . . . Weapon 26 | 3 2 . 9 12 . Energy Gun 4 | 3 . . 1 . . Energy Cannon . | . . . . . . Ballistic Gun 12 | . 2 . 6 4 . Ballistic Cannon 7 | . . . 2 5 . Launcher . | . . . . . . Special Weapon . | . . . . . . Impact Weapon 1 | . . . . 1 . Slashing Weapon 2 | . . . . 2 . Piercing Weapon . | . . . . . . Special Melee Weapon . | . . . . . . Unidentified Prototypes 1 | . . 1 . . . Parts Lost 22 | . . 1 3 15 3 Power 4 | . . . . 3 1 Propulsion 5 | . . . 1 2 2 Utility 9 | . . 1 2 6 . Weapon 4 | . . . . 4 . Highest Loss Streak 4 | . . 1 1 4 2 Average Slot Usage (%) 95 | . 89 93 98 95 92 Engine 6 | . 14 10 4 8 . Core 7 | . . 3 6 8 17 Wheel 20 | . 28 28 21 17 13 Device 2 | . . . 6 . . Storage 20 | . 6 17 22 24 18 Protection 15 | . 12 3 15 17 26 Energy Gun 1 | . 11 . . . . Ballistic Gun 11 | . 16 28 12 5 . Ballistic Cannon 5 | . . . 9 4 9 Impact Weapon 1 | . . . . 1 9 Slashing Weapon 2 | . . . . 7 . Naked Turns . | . . . . . . Heaviest Build 66 | 8 28 41 51 66 61 Greatest Support 32 | 20 20 32 32 32 26 Greatest Overweight (x) 20 | . 1 1 3 20 6 Average Overweight (x) 1 | . . 1 1 1 2 Largest Inventory Capacity 20 | 4 10 16 16 20 16 Average Capacity 15 | 4 6 11 16 18 16 Most Carried 20 | 4 6 11 16 20 11 Average Carried 11 | 1 3 6 13 13 9 Final Capacity 16 | 4 10 16 16 16 16 Final Carried 15 | 2 5 11 15 9 9 Class Distribution -------------------- 53% | Scavenger-Mutant 34% | Mutant 11% | Hauler-Mutant Dominant Class ---------------- Mutant | -10/Materials Mutant | -10/Mines Scavenger-Mutant | -9/Materials Scavenger-Mutant | -8/Materials Mutant | -8/Storage Resources | -11 -10 -10 -9 -8 -8 ----------- Run | Scr Mat Min Mat Mat Sto Matter Collected 2665 | 237 103 220 833 1198 74 Remotely . | . . . . . . Salvage Created 3244 | . 109 404 1353 1292 86 Parts 228 | . 12 24 107 79 6 Haulers Intercepted 2 | . . . 1 1 . Recyclers Shooed 2 | . . . 1 1 . Parts Field Recycled . | . . . . . . Retrieved Matter . | . . . . . . Parts Self-Destructed . | . . . . . . Prevented . | . . . . . . Kills | -11 -10 -10 -9 -8 -8 ------- Run | Scr Mat Min Mat Mat Sto Combat Hostiles Destroyed 71 | . 5 7 32 26 1 Guns 44 | . 5 7 21 11 . Cannons 27 | . . . 11 15 1 Classes Destroyed 12 | . 2 1 6 2 1 Worker 12 | . . . 2 9 1 Builder 2 | . . . 1 1 . Tunneler 1 | . . . . 1 . Hauler 2 | . . . 1 1 . Recycler 7 | . . 2 . 4 1 Watcher 5 | . . . 5 . . Swarmer 24 | . 3 3 9 9 . Grunt 31 | . 2 4 14 11 . Brawler 1 | . . . . 1 . Duelist 2 | . . . 1 1 . Sentry 12 | . . . 8 4 . Hunter 1 | . . . . . 1 Best Kill Streak 9 | . 3 3 9 8 1 Combat Bots Only 8 | . 3 3 8 6 1 Max Kills in Single Turn 1 | . 1 1 1 1 1 Gunslinging . | . . . . . . Exploded . | . . . . . . Melee . | . . . . . . Uniques/NPCs Destroyed . | . . . . . . Combat | -11 -10 -10 -9 -8 -8 -------- Run | Scr Mat Min Mat Mat Sto Damage Taken 5052 | . 119 378 1176 2660 719 Core 928 | . 28 9 323 507 61 Absorbed by Shields . | . . . . . . Core Remaining (%) 68 | 100 . 85 19 . . Volleys Fired 337 | . 11 26 107 169 24 Largest 2 | . 2 2 2 2 1 Hottest 80 | . 80 43 79 78 44 Shots Fired 502 | . 22 52 214 190 24 Gun 302 | . 22 52 164 64 . Cannon 200 | . . . 50 126 24 Launcher . | . . . . . . Special . | . . . . . . Kinetic 486 | . 14 52 206 190 24 Thermal 12 | . 4 . 8 . . Explosive . | . . . . . . Electromagnetic 4 | . 4 . . . . Robot Hit Streak 13 | . 3 12 13 10 4 Robot Miss Streak 8 | . 2 4 8 4 4 Penetration Max . | . . . . . . Secondary Targets 5 | . 1 . 4 . . Max Gunslinging Chain 1 | . 1 . 1 . . Shots Hit Robots 298 | . 12 34 119 121 12 Core Hits 156 | . 7 18 61 63 7 Critical Hits 2 | . . . . 2 . Critical Kills 2 | . . . . 2 . Critical Parts Destroyed . | . . . . . . Melee Attacks 1 | . . . . 1 . Impact . | . . . . . . Slashing 1 | . . . . 1 . Piercing . | . . . . . . Sneak Attacks . | . . . . . . Combat Hostiles . | . . . . . . Follow-up Attacks . | . . . . . . Damage Inflicted 5255 | . 129 392 1929 2461 344 Guns 2527 | . 129 392 1299 707 . Cannons 2728 | . . . 630 1754 344 Explosions . | . . . . . . Melee . | . . . . . . Ramming . | . . . . . . Kinetic 5108 | . 83 392 1828 2461 344 Thermal 135 | . 34 . 101 . . Explosive . | . . . . . . Electromagnetic 12 | . 12 . . . . Impact . | . . . . . . Slashing . | . . . . . . Piercing . | . . . . . . Highest Corruption . | . . . . . . Average Corruption . | . . . . . . Corruption Purged . | . . . . . . Overload Shots . | . . . . . . Overflow Damage 31 | . . . 1 30 . Projectiles 31 | . . . 1 30 . Explosions . | . . . . . . Melee . | . . . . . . Knockbacks 44 | . . . 6 32 6 Impact . | . . . . . . Kinetic 38 | . . . 6 27 5 Secondary 6 | . . . . 5 1 Self-Inflicted Damage 90 | . . . . . 90 Shots 2 | . . . . . 2 Rammed . | . . . . . . Targets Rammed . | . . . . . . Kicked . | . . . . . . Crushed . | . . . . . . Highest Temperature 378 | . 108 75 322 378 290 Average Temperature 111 | . 34 20 74 156 117 Received Heat Transfer 1497 | . 24 135 411 666 261 Effects 10 | . . . 2 8 . Shutdowns 3 | . . . 1 2 . Energy Bleed 3 | . . . . 3 . Interference 2 | . . . . 2 . Matter Decay 1 | . . . 1 . . Damage (minor) 1 | . . . . 1 . Siege Activations . | . . . . . . Robots Corrupted . | . . . . . . Combat Hostiles . | . . . . . . Parts Fried . | . . . . . . Impact Corruptions 1 | . . . . 1 . Robots Melted . | . . . . . . Combat Hostiles . | . . . . . . Parts Melted . | . . . . . . Heat Transferred 334 | . 75 . 259 . . Parts Sabotaged . | . . . . . . Parts Stolen . | . . . . . . Parts Stripped . | . . . . . . Power Chain Reactions . | . . . . . . Missiles Intercepted . | . . . . . . Alert | -11 -10 -10 -9 -8 -8 ------- Run | Scr Mat Min Mat Mat Sto Peak Influence 641 | . 155 190 641 626 388 Initial 270 | . . 60 11 270 263 Average 324 | . 78 121 374 420 311 Maximum Alert Level 2 | . . 1 2 2 1 Low Security (%) 25 | 100 100 99 9 . . Level 1 37 | . . . 44 38 100 Level 2 37 | . . . 45 61 . Level 3 . | . . . . . . Level 4 . | . . . . . . Level 5 . | . . . . . . High Security . | . . . . . . Max Security . | . . . . . . Squads Dispatched 13 | . 2 . 7 4 . Investigation 6 | . 1 . 4 1 . Extermination . | . . . . . . Reinforcement 6 | . 1 . 3 2 . Assault . | . . . . . . Garrison 1 | . . . . 1 . Intercept . | . . . . . . Construction Impeded 1 | . . . . 1 . Haulers Reinforced . | . . . . . . Stealth | -11 -10 -10 -9 -8 -8 --------- Run | Scr Mat Min Mat Mat Sto Distress Signals 7 | . 1 . 2 3 1 Communications Jammed . | . . . . . . Distress Signals . | . . . . . . Times Spotted 109 | . 8 7 44 42 8 Peak Tracking Total 7 | . 3 3 5 7 7 Tactical Retreats 4 | . 1 . . 3 . Traps | -11 -10 -10 -9 -8 -8 ------- Run | Scr Mat Min Mat Mat Sto Traps Triggered 3 | . 1 . 1 1 . Indirectly . | . . . . . . Trap Hack Attempts . | . . . . . . Triggered . | . . . . . . Disarmed . | . . . . . . Reprogrammed . | . . . . . . Reused . | . . . . . . Traps Extracted . | . . . . . . Installed . | . . . . . . Triggered . | . . . . . . Machines | -11 -10 -10 -9 -8 -8 ---------- Run | Scr Mat Min Mat Mat Sto Machines Disabled 7 | . . . 3 1 3 Max in Single Turn 2 | . . . 1 1 2 Machines Sabotaged . | . . . . . . Garrisons Compromised . | . . . . . . Overloaded Fab Kills . | . . . . . . Fab Network Shutdowns . | . . . . . . Hacking | -11 -10 -10 -9 -8 -8 --------- Run | Scr Mat Min Mat Mat Sto Machines Accessed 10 | . 2 . 5 2 1 Terminals 4 | . 1 . 3 . . Fabricators . | . . . . . . Repair Stations 4 | . 1 . . 2 1 Recycling Units . | . . . . . . Scanalyzers 2 | . . . 2 . . Garrison Access . | . . . . . . Total Hacks 34 | . 6 . 15 6 7 Successful 28 | . 5 . 13 4 6 Failed 6 | . 1 . 2 2 1 Catastrophic . | . . . . . . Database Lockouts . | . . . . . . Manual . | . . . . . . Terminals 14 | . 4 . 10 . . Fabricators . | . . . . . . Repair Stations 15 | . 2 . . 6 7 Recycling Units . | . . . . . . Scanalyzers 5 | . . . 5 . . Garrison Access . | . . . . . . Terminal Hacks 12 | . 3 . 9 . . Record 4 | . . . 4 . . Prototype ID Bank 2 | . 1 . 1 . . Alert Level 2 | . 1 . 1 . . Locate Traps 1 | . . . 1 . . Dispatch Records 2 | . . . 2 . . Hauler Manifests 1 | . 1 . . . . Fabricator Hacks . | . . . . . . Repair Station Hacks 12 | . 2 . . 4 6 Scan Component 6 | . 1 . . 2 3 Repair 6 | . 1 . . 2 3 Recycling Unit Hacks . | . . . . . . Scanalyzer 4 | . . . 4 . . Insert Component 2 | . . . 2 . . Analyze 2 | . . . 2 . . Garrison Access Hacks . | . . . . . . Unauthorized Hacks . | . . . . . . Terminals . | . . . . . . Fabricators . | . . . . . . Repair Stations . | . . . . . . Recycling Units . | . . . . . . Scanalyzers . | . . . . . . Garrison Access . | . . . . . . Data Cores Recovered . | . . . . . . Used . | . . . . . . Hacking Detections 9 | . 2 . 4 2 1 Full Trace Events 5 | . . . 3 2 . Feedback Events . | . . . . . . Feedback Blocked . | . . . . . . Robot Schematics Acquired . | . . . . . . Robots Built . | . . . . . . Matter . | . . . . . . Time . | . . . . . . Total Robot Build Rating . | . . . . . . Part Schematics Acquired 2 | . . . 2 . . Parts Built . | . . . . . . Matter . | . . . . . . Time . | . . . . . . Total Part Build Rating . | . . . . . . Parts Repaired 6 | . 1 . . 2 3 Time 156 | . 26 . . 52 78 Parts Recycled . | . . . . . . Recycled Matter . | . . . . . . Retrieved Matter . | . . . . . . Retrieved Components . | . . . . . . Parts Scanalyzed 2 | . . . 2 . . Part Schematics Acquired 2 | . . . 2 . . Parts Damaged . | . . . . . . Bothacking | -11 -10 -10 -9 -8 -8 ------------ Run | Scr Mat Min Mat Mat Sto Used RIF Installer . | . . . . . . Robots Hacked . | . . . . . . Non-combat . | . . . . . . Combat . | . . . . . . Robot Hacks Applied . | . . . . . . Relay Couplers Released . | . . . . . . Robots Rewired . | . . . . . . Allies Hacked . | . . . . . . Hacks Repelled . | . . . . . . Allies | -11 -10 -10 -9 -8 -8 -------- Run | Scr Mat Min Mat Mat Sto Total Allies 2 | . . 2 . . . Largest Group 2 | . . 2 2 . . Highest-Rated Group 46 | . . 46 46 . . Highest-Rated Ally 31 | . . 31 31 . . Total Orders . | . . . . . . Ally Attacks 15 | . . . 15 . . Total Damage 210 | . . . 210 . . Kills 3 | . . . 3 . . Allies Corrupted . | . . . . . . Allies Melted . | . . . . . . Intel | -11 -10 -10 -9 -8 -8 ------- Run | Scr Mat Min Mat Mat Sto Robot Analysis Total . | . . . . . . Derelict Logs Recovered 1 | . . 1 . . . Drone Launches . | . . . . . . Drone Recoveries . | . . . . . . Exploration | -11 -10 -10 -9 -8 -8 ------------- Run | Scr Mat Min Mat Mat Sto Turns Passed 3665 | 48 286 463 1457 1134 277 Spaces Moved 2284 | 44 260 384 966 495 135 Core 2 | 1 . . . 1 . Treads . | . . . . . . Legs . | . . . . . . Wheels 2282 | 43 260 384 966 494 135 Hover . | . . . . . . Flight . | . . . . . . Fastest Speed 50 | 50 80 90 110 100 110 Average Speed 106 | 79 83 94 110 117 117 Slowest Speed 1050 | 80 90 110 130 1050 140 Overloaded Moves . | . . . . . . Propulsion Burnouts . | . . . . . . Robots Hopped . | . . . . . . Cave-ins Triggered . | . . . . . . Exploration Rate (%) 41 | 4 50 60 76 37 22 Regions Visited 5 Branch Regions 2 Pre-discovered Areas . | . . . . . . Known Exits Taken 1 | . . . . 1 . Unknown Exits Taken 4 | 1 1 1 1 . . Scrap Searched . | . . . . . . Spaces Dug . | . . . . . . Terrain Destroyed 27 | . . . 1 3 23 Melee . | . . . . . . Projectile 9 | . . . 1 3 5 AOE 18 | . . . . . 18 Terrain Rammed . | . . . . . . Walls Destroyed . | . . . . . . Machines Disabled . | . . . . . . Actions | -11 -10 -10 -9 -8 -8 --------- Run | Scr Mat Min Mat Mat Sto Total 3052 | 56 311 441 1159 856 229 Wait 194 | . 18 12 24 77 63 Move 2279 | 43 259 383 965 494 135 Hop . | . . . . . . Pick Up 104 | 7 11 10 26 46 4 Fast Attach . | . . . . . . Attach 37 | 5 3 1 6 19 3 Detach . | . . . . . . Swap 49 | 1 4 6 14 24 . Drop 51 | . 5 3 17 26 . Fire 337 | . 11 26 107 169 24 Melee 1 | . . . . 1 . Ram . | . . . . . . Kick . | . . . . . . Crush . | . . . . . . Escape Stasis . | . . . . . . Rewire . | . . . . . . Trap . | . . . . . . Miscellaneous . | . . . . . . Route ------- -11/Scrapyard -10/Materials (discovered 4 exits: *Mat x2 / [*Min x2]) -10/Mines (discovered 2 exits: *Mat x2) -9/Materials (discovered 4 exits: *Mat x2 / [*Min x2]) -8/Materials (discovered 2 exits: *Sto x2) -8/Storage History --------- Turn | Location | Event 12 | -11/Scrapyard | Discovered new exit (range 13) 49 | -11/Scrapyard | Entered Materials 68 | -10/Materials | Discovered new exit (range 16) 89 | -10/Materials | Met 8R-AWN 95 | -10/Materials | Discovered new exit (range 16) 270 | -10/Materials | Repaired Lgt. Armor Plating 288 | -10/Materials | Discovered new exit (range 11) 301 | -10/Materials | Build established: Mutant 314 | -10/Materials | Discovered new exit (range 16) 335 | -10/Materials | Entered Mines 336 | -10/Mines | Followed 8R-AWN into the Mines 347 | -10/Mines | Met a Derelict bent on vengeance 377 | -10/Mines | Found a damaged Exp. Sensor Array with a note attached 379 | -10/Mines | Found Prototype Device 380 | -10/Mines | Identified Exp. Sensor Array 713 | -10/Mines | Discovered new exit (range 10) 761 | -10/Mines | Discovered new exit (range 10) 798 | -10/Mines | Entered Materials 798 | -9/Materials | Accompanied by 2 allies 798 | -9/Materials | Evolved 2 slots: Utility x2 803 | -9/Materials | Led the pair of lost Derelicts to an unsafe place 963 | -9/Materials | Build established: Scavenger-Mutant 1281 | -9/Materials | Discovered new exit (range 10) 1371 | -9/Materials | Discovered new exit (range 13) 1482 | -9/Materials | Core integrity fell below 50% 1642 | -9/Materials | Destroyed 8 combat bots 1777 | -9/Materials | Discovered new exit (range 10) 2181 | -9/Materials | Core integrity fell below 20% 2210 | -9/Materials | Discovered new exit (range 15) 2255 | -9/Materials | Entered another Materials area 2255 | -8/Materials | Evolved 2 slots: Power x1, Utility x1 2256 | -8/Materials | Identified exit to Storage 2548 | -8/Materials | Repaired Lrg. Storage Unit 2842 | -8/Materials | Build established: Hauler-Mutant 2922 | -8/Materials | Repaired Lrg. Storage Unit 3067 | -8/Materials | Lost 3 parts (1n2u) 3156 | -8/Materials | Discovered exit to Storage (range 9) 3164 | -8/Materials | Core integrity fell below 50% 3181 | -8/Materials | Lost 4 parts (1p1n1u1w) 3192 | -8/Materials | Garrison activated, responded to threat 3240 | -8/Materials | Lost 3 parts (1p1u1w) 3251 | -8/Materials | Core integrity fell below 20% 3389 | -8/Materials | Entered Storage 3424 | -8/Storage | Repaired Wheel 3450 | -8/Storage | Repaired Power Shielding 3483 | -8/Storage | Repaired Wheel 3666 | -8/Storage | Destroyed by G-50 Soldier with Heavy Laser Last Messages --------------- 03573_ U-05 Engineer builds a Door. 03574_ Acquired Com. Wheel. 03576_ Acquired 4 matter. 03578_ U-05 Engineer lays Concrete. 03579_ U-05 Engineer builds a Wall. 03583_ U-05 Engineer lays Concrete. 03599_ K-01 Serf collects debris. 03619_ W-25 Informer sends out distress signal. 03624_ K-01 Serf destroyed. 03626_ C-30 ARC bursts open, deploying its payload. 03626_ G-50 Soldier unfolds itself. 03626_ G-47 Trooper unfolds itself. 03628_ W-25 Informer knocked back. 03630_ Lgt. Nuclear Core destroyed. 03632_ K-01 Serf collects debris. 03649_ G-47 Trooper knocked back. 03653_ Storage Shell breached. 03657_ G-50 Soldier knocked back. 03660_ Com. Wheel destroyed. 03663_ U-05 Engineer builds a Wall. Map ----- +----------------------------------------------------+ | ?????????????????????????????????????????????????? | | ?????????????????????????????????????????????????? | | ?????????????????????????????????????????????????? | | ?????????????????????????????????????????????????? | | ?????????????????????????????????????????????????? | | ?????????????????????????????????????????????????? | | ?????????????????????????????????????????????????? | | ?????????????????????????????????????????????????? | | ?????????????????????????????????????????????????? | | ?????????????????????????????????????????????????? | | ?????????????????????????????????????????????????? | | ?????????????????????????????????????????????????? | | ?????????????????????????????????????????????????? | | ?????????????????????????????????????????????????? | | ?????????????????????????????????????????????????? | | ?????????????????????????????????????????????????? | | ?????????????????????????????????????????????????? | | ??????????????????????????????????????????? ???? | | ??????????????????????????????????????????# #??? | | ??????????????????????????????????????????# #??? | | ??????????????????????????????????????????# #??? | | ??????????????????????###########?????????# #??? | | ??????????????????????# #?????????# #??? | | ??????????????????????# """" #?????????# #??? | | ??????????????????????#gg"!%" #?????????# #??? | | ??????????????????????# @]]" #?????????# #??? | | ?????????????????????##ug !=" #?????????# #??# | | ?????????????????????## g"[*" #?????????# #?? | | ??????????????????????# """" #?????????# #? | | ??????????????????????# #?????????# #? | | ??????????????# ##"########+#########+##### # | | ???????????? "%" # | | ???????????? " + | | ???????????? =%* # | | ?????????????#######+"##########+########## # | | ??????????????????? ?????????????????????# #? | | ?????????????????# ??????????????????????# #? | | ?????????????????#????????????????????????# #?? | | ??????????????????????????????????????????# #??# | | ??????????????????????????????????????????# #??? | | ??????????????????????????????????????????# #??? | | ??????????????????????????????????????????# #??? | | ??????????????????????????????????????????# #??? | | ??????????????????????????????????????????# #??? | | ??????????????????????????????????????????# #??? | | ??????????????????????????????????????????+ #??? | | ??????????????????????????????????????????# #??? | | ??????????????????????????????????????????# #??? | | ??????????????????????????????????????????# = #### | | ??????????????????????????????????????????#! ## | +----------------------------------------------------+ Best States ------------- Heat Dissipation 45 Energy Generation 23 Energy Capacity 405 Matter Stores 450 Matter Capacity 450 Sight Range 16 Robot Scan Range 30 Terrain Scan Density 10 Armor Coverage 450 Power Shielding 33 Evasion (%) 44 Item Schematics ----------------- Lgt. Armor Plating | -9/Materials | Scanalyzed Katana | -9/Materials | Scanalyzed Robot Schematics ------------------ None Fabricated ------------ Nothing Alien Tech Used ----------------- None Achievements -------------- Shopping List Challenges ------------ None Game ------ Seed PrecisionAlphaComputer Manual? 0 Play Time 01:00:29 Cumulative 25.2 hours Start 2022.02.05 @ 09:50:01 End 2022.02.05 @ 10:54:35 Sessions 1 Manual Loads 0 Difficulty Rogue Special Mode None Game No. 30 Rogue 27 Adventurer 3 Explorer 0 Win Type - Total 0 Types 0/0/0/0/0/0/0/0/0 Lore% 6 Gallery% 17 Achievement% 11 Wizard Run 0 Options --------- ASCII 0 Keyboard 0 Movement Mouse Keybinds 0 Fullscreen 1 Font 24/Proggy Map View 113x50 Tactical HUD 1 Map Filters NONE Filters NONE Steam 1 RUN: a7dc2b5a-2939-4691-95ac-900d14070474